[Event "Titled Tuesday Blitz May 30 Late 2023"]
[White "Stachanczyk, Jacek"]
[Black "Tomiello, Mateus Costamilan"]
[WhiteFideId "1116657"]
[BlackFideId "22701958"]
[WhiteElo "2084"]
[BlackElo "1990"]
[Result "1-0"]
[Round "05"]
[TimeControl "180+2"]
[Date "2023.05.31"]
[WhiteClock "0:00:53"]
[BlackClock "0:00:40"]

1. e4 {[%clk 0:02:55]}  e5 {[%clk 0:02:59]} 2. Nf3 {[%clk 0:02:55]}  Nc6 {[%clk 0:03:00]} 3. Bb5 {[%clk 0:02:55]}  Nf6 {[%clk 0:02:59]} 4. O-O {[%clk 0:02:48]}  Nxe4 {[%clk 0:02:58]} 5. d4 {[%clk 0:02:45]}  Nd6 {[%clk 0:02:58]} 6. dxe5 {[%clk 0:02:45]}  Nxb5 {[%clk 0:02:58]} 7. a4 {[%clk 0:02:46]}  d6 {[%clk 0:02:57]} 8. axb5 {[%clk 0:02:43]}  Nxe5 {[%clk 0:02:57]} 9. Re1 {[%clk 0:02:24]}  Be7 {[%clk 0:02:55]} 10. Nxe5 {[%clk 0:02:23]}  dxe5 {[%clk 0:02:55]} 11. Qxd8+ {[%clk 0:02:22]}  Bxd8 {[%clk 0:02:55]} 12. Rxe5+ {[%clk 0:02:23]}  Be6 {[%clk 0:02:55]} 13. Bf4 {[%clk 0:02:16]}  O-O {[%clk 0:02:52]} 14. Re1 {[%clk 0:02:15]}  Bf6 {[%clk 0:02:46]} 15. Be5 {[%clk 0:02:14]}  Bxe5 {[%clk 0:02:40]} 16. Rxe5 {[%clk 0:02:15]}  Rfd8 {[%clk 0:02:40]} 17. Nc3 {[%clk 0:02:09]}  Rd2 {[%clk 0:02:38]} 18. Re2 {[%clk 0:02:09]}  Rxe2 {[%clk 0:02:23]} 19. Nxe2 {[%clk 0:02:10]}  Kf8 {[%clk 0:02:18]} 20. b3 {[%clk 0:02:07]}  Ke7 {[%clk 0:02:16]} 21. Kf1 {[%clk 0:02:07]}  Bd7 {[%clk 0:02:13]} 22. c4 {[%clk 0:02:06]}  c6 {[%clk 0:02:08]} 23. b6 {[%clk 0:01:55]}  a6 {[%clk 0:02:05]} 24. Nc3 {[%clk 0:01:47]}  Kd6 {[%clk 0:02:00]} 25. b4 {[%clk 0:01:47]}  Bf5 {[%clk 0:01:56]} 26. Rd1+ {[%clk 0:01:46]}  Ke6 {[%clk 0:01:55]} 27. Na4 {[%clk 0:01:46]}  Ke7 {[%clk 0:01:47]} 28. Nc5 {[%clk 0:01:47]}  Rb8 {[%clk 0:01:43]} 29. f3 {[%clk 0:01:45]}  Be6 {[%clk 0:01:43]} 30. Rd4 {[%clk 0:01:43]}  Ra8 {[%clk 0:01:13]} 31. Nxb7 {[%clk 0:01:23]}  Rb8 {[%clk 0:01:12]} 32. Na5 {[%clk 0:01:20]}  Rxb6 {[%clk 0:01:07]} 33. c5 {[%clk 0:01:20]}  Rb5 {[%clk 0:01:06]} 34. Nxc6+ {[%clk 0:01:14]}  Kf6 {[%clk 0:01:06]} 35. Ke2 {[%clk 0:01:10]}  h5 {[%clk 0:01:01]} 36. Kd3 {[%clk 0:01:10]}  Rb7 {[%clk 0:00:57]} 37. Kc3 {[%clk 0:01:09]}  g5 {[%clk 0:00:56]} 38. Rd6 {[%clk 0:01:08]}  h4 {[%clk 0:00:52]} 39. Nd8 {[%clk 0:01:05]}  Ra7 {[%clk 0:00:51]} 40. Nxe6 {[%clk 0:01:02]}  fxe6 {[%clk 0:00:51]} 41. h3 {[%clk 0:00:57]}  Ke5 {[%clk 0:00:50]} 42. Kc4 {[%clk 0:00:57]}  Kf4 {[%clk 0:00:44]} 43. Rxe6 {[%clk 0:00:55]}  Kg3 {[%clk 0:00:44]} 44. Re2 {[%clk 0:00:55]}  Rd7 {[%clk 0:00:40]} 45. c6 {[%clk 0:00:54]}  Rd1 {[%clk 0:00:41]} 46. Rc2 {[%clk 0:00:53]}  Rd8 {[%clk 0:00:41]} 47. Kc5 {[%clk 0:00:53]}  Rb8 {[%clk 0:00:40]} 1-0


[Site "https://www.chess.com"]

[Event "Titled Tuesday Blitz May 30 Late 2023"]
[White "Castaneda, Jhon David"]
[Black "Vaglio Munoz, Jaime"]
[WhiteFideId "4405048"]
[BlackFideId "6500145"]
[WhiteElo "2086"]
[BlackElo "2199"]
[Result "1-0"]
[Round "05"]
[TimeControl "180+2"]
[Date "2023.05.31"]
[WhiteClock "0:01:02"]
[BlackClock "0:00:03"]

1. d4 {[%clk 0:03:00]}  c6 {[%clk 0:01:46]} 2. Nf3 {[%clk 0:02:59]}  b5 {[%clk 0:01:45]} 3. e4 {[%clk 0:02:58]}  a6 {[%clk 0:01:44]} 4. Bd3 {[%clk 0:02:58]}  d5 {[%clk 0:01:45]} 5. e5 {[%clk 0:02:54]}  Bg4 {[%clk 0:01:44]} 6. h3 {[%clk 0:02:54]}  Bxf3 {[%clk 0:01:43]} 7. Qxf3 {[%clk 0:02:55]}  e6 {[%clk 0:01:43]} 8. O-O {[%clk 0:02:53]}  c5 {[%clk 0:01:43]} 9. dxc5 {[%clk 0:02:52]}  Bxc5 {[%clk 0:01:43]} 10. Qg4 {[%clk 0:02:49]}  Kf8 {[%clk 0:01:41]} 11. Nd2 {[%clk 0:02:47]}  Nc6 {[%clk 0:01:40]} 12. Nf3 {[%clk 0:02:47]}  Nge7 {[%clk 0:01:28]} 13. c3 {[%clk 0:02:39]}  Ng6 {[%clk 0:01:27]} 14. Re1 {[%clk 0:02:37]}  Qc7 {[%clk 0:01:18]} 15. Qg3 {[%clk 0:02:33]}  b4 {[%clk 0:00:53]} 16. h4 {[%clk 0:02:32]}  Nge7 {[%clk 0:00:50]} 17. h5 {[%clk 0:02:19]}  h6 {[%clk 0:00:49]} 18. Bd2 {[%clk 0:02:13]}  a5 {[%clk 0:00:49]} 19. Rac1 {[%clk 0:02:13]}  Qb6 {[%clk 0:00:48]} 20. c4 {[%clk 0:02:05]}  d4 {[%clk 0:00:42]} 21. Be4 {[%clk 0:02:00]}  Rd8 {[%clk 0:00:41]} 22. Bf4 {[%clk 0:01:58]}  d3 {[%clk 0:00:39]} 23. Rcd1 {[%clk 0:01:55]}  Nd4 {[%clk 0:00:33]} 24. Rxd3 {[%clk 0:01:50]}  Ndf5 {[%clk 0:00:32]} 25. Rxd8+ {[%clk 0:01:41]}  Qxd8 {[%clk 0:00:33]} 26. Qg4 {[%clk 0:01:37]}  Qb6 {[%clk 0:00:33]} 27. Rf1 {[%clk 0:01:36]}  a4 {[%clk 0:00:26]} 28. b3 {[%clk 0:01:32]}  a3 {[%clk 0:00:26]} 29. Nh4 {[%clk 0:01:27]}  Nxh4 {[%clk 0:00:19]} 30. Qxh4 {[%clk 0:01:28]}  Bd4 {[%clk 0:00:18]} 31. Bg3 {[%clk 0:01:17]}  Qc5 {[%clk 0:00:16]} 32. Qf4 {[%clk 0:01:17]}  Ke8 {[%clk 0:00:15]} 33. Qg4 {[%clk 0:01:15]}  Rg8 {[%clk 0:00:14]} 34. Bh7 {[%clk 0:01:14]}  Kf8 {[%clk 0:00:12]} 35. Bxg8 {[%clk 0:01:13]}  Kxg8 {[%clk 0:00:13]} 36. Qe4 {[%clk 0:01:14]}  Nf5 {[%clk 0:00:12]} 37. Bf4 {[%clk 0:01:12]}  Qc7 {[%clk 0:00:09]} 38. g4 {[%clk 0:01:11]}  Nh4 {[%clk 0:00:07]} 39. Bg3 {[%clk 0:01:10]}  Bxe5 {[%clk 0:00:05]} 40. Bxh4 {[%clk 0:01:09]}  Bh2+ {[%clk 0:00:05]} 41. Kg2 {[%clk 0:01:09]}  Be5 {[%clk 0:00:06]} 42. Bg3 {[%clk 0:01:07]}  Bc3 {[%clk 0:00:05]} 43. Bxc7 {[%clk 0:01:06]}  e5 {[%clk 0:00:05]} 44. Bxe5 {[%clk 0:01:05]}  Bd2 {[%clk 0:00:05]} 45. Rd1 {[%clk 0:01:05]}  f6 {[%clk 0:00:05]} 46. Rxd2 {[%clk 0:01:04]}  Kf7 {[%clk 0:00:05]} 47. Bg3 {[%clk 0:01:03]}  g5 {[%clk 0:00:04]} 48. c5 {[%clk 0:01:03]}  f5 {[%clk 0:00:04]} 49. Qxf5+ {[%clk 0:01:02]}  Ke7 {[%clk 0:00:04]} 50. c6 {[%clk 0:01:02]}  Ke8 {[%clk 0:00:03]} 51. Qd7+ {[%clk 0:01:02]}  Kf8 {[%clk 0:00:03]} 52. c7 {[%clk 0:01:02]} 1-0


[Site "https://www.chess.com"]

[Event "Titled Tuesday Blitz May 30 Late 2023"]
[White "Kavutskiy, Konstantin"]
[Black "KVAIDAN"]
[WhiteFideId "2026384"]
[WhiteElo "2323"]
[BlackElo "2288"]
[Result "1-0"]
[Round "05"]
[TimeControl "180+2"]
[Date "2023.05.31"]
[WhiteClock "0:00:52"]
[BlackClock "0:01:06"]

1. d4 {[%clk 0:03:00]}  e6 {[%clk 0:02:42]} 2. c4 {[%clk 0:02:54]}  f5 {[%clk 0:02:42]} 3. g3 {[%clk 0:02:54]}  Nf6 {[%clk 0:02:42]} 4. Bg2 {[%clk 0:02:54]}  Be7 {[%clk 0:02:43]} 5. Nf3 {[%clk 0:02:53]}  O-O {[%clk 0:02:43]} 6. O-O {[%clk 0:02:54]}  d6 {[%clk 0:02:43]} 7. b3 {[%clk 0:02:53]}  a5 {[%clk 0:02:44]} 8. Bb2 {[%clk 0:02:52]}  Ne4 {[%clk 0:02:44]} 9. Nfd2 {[%clk 0:02:45]}  a4 {[%clk 0:02:43]} 10. bxa4 {[%clk 0:02:33]}  Nxd2 {[%clk 0:02:40]} 11. Nxd2 {[%clk 0:02:31]}  Qe8 {[%clk 0:02:41]} 12. Qb3 {[%clk 0:02:19]}  Qxa4 {[%clk 0:02:26]} 13. Rfe1 {[%clk 0:02:02]}  Nc6 {[%clk 0:02:24]} 14. d5 {[%clk 0:01:57]}  Ne5 {[%clk 0:02:14]} 15. c5 {[%clk 0:01:52]}  Qxb3 {[%clk 0:02:09]} 16. axb3 {[%clk 0:01:42]}  Rxa1 {[%clk 0:02:07]} 17. Rxa1 {[%clk 0:01:43]}  dxc5 {[%clk 0:02:07]} 18. Bxe5 {[%clk 0:01:41]}  Bd6 {[%clk 0:02:06]} 19. Bxd6 {[%clk 0:01:39]}  cxd6 {[%clk 0:02:06]} 20. dxe6 {[%clk 0:01:39]}  Bxe6 {[%clk 0:02:06]} 21. Ra7 {[%clk 0:01:34]}  d5 {[%clk 0:02:00]} 22. Rxb7 {[%clk 0:01:33]}  c4 {[%clk 0:02:00]} 23. bxc4 {[%clk 0:01:31]}  dxc4 {[%clk 0:02:00]} 24. Rc7 {[%clk 0:01:30]}  Rd8 {[%clk 0:02:01]} 25. Nf1 {[%clk 0:01:25]}  Rd1 {[%clk 0:01:59]} 26. Bf3 {[%clk 0:01:21]}  f4 {[%clk 0:01:49]} 27. gxf4 {[%clk 0:01:21]}  Rc1 {[%clk 0:01:46]} 28. Kg2 {[%clk 0:01:19]}  c3 {[%clk 0:01:46]} 29. Ne3 {[%clk 0:01:16]}  Bb3 {[%clk 0:01:40]} 30. Bd5+ {[%clk 0:01:14]}  Bxd5+ {[%clk 0:01:37]} 31. Nxd5 {[%clk 0:01:15]}  Re1 {[%clk 0:01:37]} 32. Nxc3 {[%clk 0:01:14]}  Rc1 {[%clk 0:01:36]} 33. Nd5 {[%clk 0:01:14]}  Rd1 {[%clk 0:01:32]} 34. e4 {[%clk 0:01:13]}  h5 {[%clk 0:01:31]} 35. f5 {[%clk 0:01:12]}  h4 {[%clk 0:01:29]} 36. Kh3 {[%clk 0:01:09]}  Rd3+ {[%clk 0:01:28]} 37. Kxh4 {[%clk 0:01:08]}  Rd4 {[%clk 0:01:28]} 38. f3 {[%clk 0:01:08]}  Rd2 {[%clk 0:01:28]} 39. Ne7+ {[%clk 0:01:03]}  Kh7 {[%clk 0:01:27]} 40. Ng6 {[%clk 0:01:01]}  Rxh2+ {[%clk 0:01:20]} 41. Kg3 {[%clk 0:01:01]}  Rh1 {[%clk 0:01:09]} 42. Rc8 {[%clk 0:00:59]}  Rg1+ {[%clk 0:01:06]} 43. Kf4 {[%clk 0:00:52]} 1-0


[Site "https://www.chess.com"]

[Event "Titled Tuesday Blitz May 30 Late 2023"]
[White "Ardila, Oscar Humberto"]
[Black "Senft, Sean"]
[WhiteFideId "4404742"]
[BlackFideId "2044960"]
[WhiteElo "1918"]
[BlackElo "1989"]
[Result "0-1"]
[Round "05"]
[TimeControl "180+2"]
[Date "2023.05.31"]
[WhiteClock "0:00:08"]
[BlackClock "0:01:44"]

1. d4 {[%clk 0:02:52]}  d5 {[%clk 0:03:00]} 2. c4 {[%clk 0:02:52]}  c6 {[%clk 0:03:00]} 3. e3 {[%clk 0:02:49]}  Nf6 {[%clk 0:03:01]} 4. Nf3 {[%clk 0:02:48]}  a6 {[%clk 0:03:02]} 5. Nc3 {[%clk 0:02:46]}  Bf5 {[%clk 0:03:02]} 6. Be2 {[%clk 0:02:45]}  e6 {[%clk 0:03:02]} 7. O-O {[%clk 0:02:45]}  Bd6 {[%clk 0:03:03]} 8. b3 {[%clk 0:02:45]}  O-O {[%clk 0:03:04]} 9. Bb2 {[%clk 0:02:45]}  Ne4 {[%clk 0:03:03]} 10. Rc1 {[%clk 0:02:43]}  Nd7 {[%clk 0:03:03]} 11. Nd2 {[%clk 0:02:41]}  Nxc3 {[%clk 0:03:02]} 12. Bxc3 {[%clk 0:02:40]}  Nf6 {[%clk 0:03:03]} 13. Bf3 {[%clk 0:02:35]}  Rc8 {[%clk 0:02:57]} 14. h3 {[%clk 0:02:33]}  Bb8 {[%clk 0:02:56]} 15. Re1 {[%clk 0:02:27]}  Qd6 {[%clk 0:02:53]} 16. Nf1 {[%clk 0:02:26]}  Rfe8 {[%clk 0:02:46]} 17. Qd2 {[%clk 0:02:21]}  Be4 {[%clk 0:02:45]} 18. Bb4 {[%clk 0:02:10]}  Qd8 {[%clk 0:02:37]} 19. Be2 {[%clk 0:02:01]}  Bg6 {[%clk 0:02:35]} 20. c5 {[%clk 0:01:55]}  Ne4 {[%clk 0:02:35]} 21. Qb2 {[%clk 0:01:54]}  f5 {[%clk 0:02:33]} 22. Bf3 {[%clk 0:01:46]}  Rf8 {[%clk 0:02:31]} 23. Qa3 {[%clk 0:01:34]}  Qg5 {[%clk 0:02:30]} 24. Qb2 {[%clk 0:01:14]}  f4 {[%clk 0:02:30]} 25. Bd2 {[%clk 0:01:07]}  Nxd2 {[%clk 0:02:22]} 26. Qxd2 {[%clk 0:01:07]}  fxe3 {[%clk 0:02:23]} 27. Qxe3 {[%clk 0:01:01]}  Bf4 {[%clk 0:02:23]} 28. Qxe6+ {[%clk 0:01:00]}  Kh8 {[%clk 0:02:24]} 29. Rcd1 {[%clk 0:00:50]}  Bf5 {[%clk 0:02:23]} 30. Qe7 {[%clk 0:00:49]}  Qg6 {[%clk 0:02:20]} 31. Bg4 {[%clk 0:00:37]}  Bxg4 {[%clk 0:02:09]} 32. hxg4 {[%clk 0:00:37]}  Qxg4 {[%clk 0:02:10]} 33. Qe6 {[%clk 0:00:34]}  Qh5 {[%clk 0:02:07]} 34. Qh3 {[%clk 0:00:27]}  Qf7 {[%clk 0:02:03]} 35. Re2 {[%clk 0:00:24]}  h6 {[%clk 0:02:03]} 36. Rde1 {[%clk 0:00:22]}  Bg5 {[%clk 0:02:03]} 37. Ng3 {[%clk 0:00:17]}  Bf6 {[%clk 0:02:03]} 38. Nf5 {[%clk 0:00:15]}  Qg6 {[%clk 0:02:03]} 39. Nd6 {[%clk 0:00:14]}  Rcd8 {[%clk 0:02:00]} 40. Qg3 {[%clk 0:00:11]}  Qxg3 {[%clk 0:01:59]} 41. fxg3 {[%clk 0:00:11]}  Bxd4+ {[%clk 0:02:00]} 42. Kh2 {[%clk 0:00:12]}  Bxc5 {[%clk 0:02:01]} 43. Nxb7 {[%clk 0:00:10]}  Bb4 {[%clk 0:01:55]} 44. Nxd8 {[%clk 0:00:10]}  Bxe1 {[%clk 0:01:55]} 45. Ne6 {[%clk 0:00:10]}  Rf1 {[%clk 0:01:53]} 46. Nf4 {[%clk 0:00:09]}  Bb4 {[%clk 0:01:46]} 47. Kh3 {[%clk 0:00:09]}  g5 {[%clk 0:01:45]} 48. Ng6+ {[%clk 0:00:08]}  Kg7 {[%clk 0:01:45]} 49. Ne5 {[%clk 0:00:09]}  h5 {[%clk 0:01:44]} 50. Nxc6 {[%clk 0:00:08]}  Rh1# {[%clk 0:01:44]} 0-1


[Site "https://www.chess.com"]

[Event "Titled Tuesday Blitz May 30 Late 2023"]
[White "The_Straightforward_Rook"]
[Black "Toncheva, Nadya"]
[BlackFideId "2924056"]
[WhiteElo "2280"]
[BlackElo "2101"]
[Result "0-1"]
[Round "05"]
[TimeControl "180+2"]
[Date "2023.05.31"]
[WhiteClock "0:00:20"]
[BlackClock "0:00:08"]

1. e4 {[%clk 0:02:57]}  c5 {[%clk 0:02:58]} 2. Nf3 {[%clk 0:02:56]}  Nc6 {[%clk 0:02:59]} 3. Bb5 {[%clk 0:02:55]}  e6 {[%clk 0:02:57]} 4. O-O {[%clk 0:02:54]}  Nge7 {[%clk 0:02:58]} 5. Re1 {[%clk 0:02:54]}  a6 {[%clk 0:02:57]} 6. Bf1 {[%clk 0:02:54]}  d5 {[%clk 0:02:58]} 7. exd5 {[%clk 0:02:45]}  Nxd5 {[%clk 0:02:59]} 8. b3 {[%clk 0:02:41]}  Be7 {[%clk 0:02:56]} 9. Bb2 {[%clk 0:02:41]}  Bf6 {[%clk 0:02:56]} 10. Ne5 {[%clk 0:02:34]}  Qc7 {[%clk 0:02:14]} 11. Qe2 {[%clk 0:02:06]}  Nf4 {[%clk 0:01:55]} 12. Qe3 {[%clk 0:02:02]}  Nd5 {[%clk 0:01:41]} 13. Qg3 {[%clk 0:02:01]}  Nxe5 {[%clk 0:01:31]} 14. Bxe5 {[%clk 0:01:50]}  Bxe5 {[%clk 0:01:25]} 15. Rxe5 {[%clk 0:01:50]}  f6 {[%clk 0:01:20]} 16. Re1 {[%clk 0:01:35]}  Qxg3 {[%clk 0:01:18]} 17. hxg3 {[%clk 0:01:36]}  Nb4 {[%clk 0:01:15]} 18. Na3 {[%clk 0:01:34]}  Kf7 {[%clk 0:01:15]} 19. c3 {[%clk 0:01:34]}  Nc6 {[%clk 0:01:10]} 20. Nc4 {[%clk 0:01:34]}  b5 {[%clk 0:01:03]} 21. Nd6+ {[%clk 0:01:33]}  Ke7 {[%clk 0:01:02]} 22. Nxc8+ {[%clk 0:01:34]}  Raxc8 {[%clk 0:01:01]} 23. a4 {[%clk 0:01:31]}  Rhd8 {[%clk 0:00:48]} 24. axb5 {[%clk 0:01:28]}  axb5 {[%clk 0:00:49]} 25. Bxb5 {[%clk 0:01:28]}  Rxd2 {[%clk 0:00:49]} 26. Bc4 {[%clk 0:01:19]}  e5 {[%clk 0:00:46]} 27. Red1 {[%clk 0:01:08]}  Rcd8 {[%clk 0:00:45]} 28. Rxd2 {[%clk 0:01:08]}  Rxd2 {[%clk 0:00:46]} 29. Ra6 {[%clk 0:01:07]}  Nd8 {[%clk 0:00:30]} 30. Ra7+ {[%clk 0:01:05]}  Kf8 {[%clk 0:00:30]} 31. Kf1 {[%clk 0:01:00]}  Rc2 {[%clk 0:00:28]} 32. Rd7 {[%clk 0:01:00]}  Nc6 {[%clk 0:00:24]} 33. Rf7+ {[%clk 0:00:59]}  Ke8 {[%clk 0:00:24]} 34. Rxg7 {[%clk 0:00:59]}  Ne7 {[%clk 0:00:20]} 35. Rxh7 {[%clk 0:00:56]}  Rxc3 {[%clk 0:00:20]} 36. Rh8+ {[%clk 0:00:49]}  Kd7 {[%clk 0:00:20]} 37. Rf8 {[%clk 0:00:48]}  f5 {[%clk 0:00:18]} 38. Ra8 {[%clk 0:00:45]}  Rc2 {[%clk 0:00:15]} 39. Ra7+ {[%clk 0:00:43]}  Kd6 {[%clk 0:00:15]} 40. Ra6+ {[%clk 0:00:43]}  Kd7 {[%clk 0:00:15]} 41. g4 {[%clk 0:00:36]}  fxg4 {[%clk 0:00:15]} 42. Be6+ {[%clk 0:00:36]}  Kc7 {[%clk 0:00:16]} 43. Bxg4 {[%clk 0:00:37]}  Nc6 {[%clk 0:00:14]} 44. g3 {[%clk 0:00:30]}  Nd4 {[%clk 0:00:14]} 45. Be6 {[%clk 0:00:25]}  Rb2 {[%clk 0:00:13]} 46. Ra3 {[%clk 0:00:20]}  Nc2 {[%clk 0:00:11]} 47. Ra7+ {[%clk 0:00:19]}  Kd6 {[%clk 0:00:11]} 48. Ra6+ {[%clk 0:00:19]}  Ke7 {[%clk 0:00:11]} 49. Bc4 {[%clk 0:00:19]}  Nd4 {[%clk 0:00:11]} 50. Ra7+ {[%clk 0:00:19]}  Kd6 {[%clk 0:00:11]} 51. Kg2 {[%clk 0:00:20]}  Kc6 {[%clk 0:00:08]} 52. Ra6+ {[%clk 0:00:20]}  Kc7 {[%clk 0:00:08]} 53. Ra7+ {[%clk 0:00:19]}  Kc6 {[%clk 0:00:09]} 54. Re7 {[%clk 0:00:20]}  Nxb3 {[%clk 0:00:08]} 55. Bxb3 {[%clk 0:00:20]}  Rxb3 {[%clk 0:00:09]} 56. Rxe5 {[%clk 0:00:21]}  c4 {[%clk 0:00:10]} 57. Re6+ {[%clk 0:00:21]}  Kd5 {[%clk 0:00:10]} 58. Re8 {[%clk 0:00:21]}  c3 {[%clk 0:00:10]} 59. Rc8 {[%clk 0:00:21]}  Kd4 {[%clk 0:00:10]} 60. Kf3 {[%clk 0:00:21]}  c2+ {[%clk 0:00:10]} 61. Kf4 {[%clk 0:00:20]}  Rc3 {[%clk 0:00:11]} 62. Rd8+ {[%clk 0:00:20]}  Kc4 {[%clk 0:00:10]} 63. Rc8+ {[%clk 0:00:21]}  Kb4 {[%clk 0:00:10]} 64. Rb8+ {[%clk 0:00:21]}  Ka3 {[%clk 0:00:09]} 65. Ra8+ {[%clk 0:00:22]}  Kb2 {[%clk 0:00:09]} 66. Rb8+ {[%clk 0:00:22]}  Rb3 {[%clk 0:00:10]} 67. Rc8 {[%clk 0:00:22]}  Rc3 {[%clk 0:00:09]} 68. Rb8+ {[%clk 0:00:22]}  Rb3 {[%clk 0:00:06]} 69. Rc8 {[%clk 0:00:23]}  c1=Q+ {[%clk 0:00:07]} 70. Rxc1 {[%clk 0:00:23]}  Kxc1 {[%clk 0:00:08]} 71. g4 {[%clk 0:00:23]}  Kd2 {[%clk 0:00:08]} 72. g5 {[%clk 0:00:24]}  Kd3 {[%clk 0:00:09]} 73. Kf5 {[%clk 0:00:24]}  Kd4 {[%clk 0:00:09]} 74. Kf6 {[%clk 0:00:24]}  Rb6+ {[%clk 0:00:09]} 75. Kf7 {[%clk 0:00:24]}  Ke5 {[%clk 0:00:09]} 76. g6 {[%clk 0:00:25]}  Rf6+ {[%clk 0:00:08]} 77. Kg7 {[%clk 0:00:24]}  Kf5 {[%clk 0:00:09]} 78. Kh7 {[%clk 0:00:22]}  Rxg6 {[%clk 0:00:09]} 79. f4 {[%clk 0:00:22]}  Kf6 {[%clk 0:00:08]} 80. f5 {[%clk 0:00:20]}  Rg5 {[%clk 0:00:09]} 81. Kh6 {[%clk 0:00:20]}  Rxf5 {[%clk 0:00:08]} 0-1


[Site "https://www.chess.com"]

[Event "Titled Tuesday Blitz May 30 Late 2023"]
[White "Leschinsky, Gary"]
[Black "Remolar Gallen, Jose"]
[WhiteFideId "30951321"]
[BlackFideId "2215187"]
[WhiteElo "1855"]
[BlackElo "2223"]
[Result "0-1"]
[Round "05"]
[TimeControl "180+2"]
[Date "2023.05.31"]
[WhiteClock "0:01:06"]
[BlackClock "0:00:08"]

1. d4 {[%clk 0:03:00]}  Nf6 {[%clk 0:02:54]} 2. c4 {[%clk 0:03:01]}  g6 {[%clk 0:02:54]} 3. Nf3 {[%clk 0:03:01]}  Bg7 {[%clk 0:02:53]} 4. Nc3 {[%clk 0:03:01]}  O-O {[%clk 0:02:52]} 5. e4 {[%clk 0:03:01]}  d6 {[%clk 0:02:52]} 6. Be2 {[%clk 0:02:59]}  Bg4 {[%clk 0:02:52]} 7. Be3 {[%clk 0:02:59]}  Nfd7 {[%clk 0:02:52]} 8. O-O {[%clk 0:02:59]}  a6 {[%clk 0:02:51]} 9. h3 {[%clk 0:02:59]}  Bxf3 {[%clk 0:02:50]} 10. Bxf3 {[%clk 0:03:00]}  Nc6 {[%clk 0:02:38]} 11. d5 {[%clk 0:03:00]}  Na5 {[%clk 0:02:37]} 12. Be2 {[%clk 0:03:00]}  c5 {[%clk 0:02:37]} 13. Rc1 {[%clk 0:03:00]}  f5 {[%clk 0:02:27]} 14. exf5 {[%clk 0:02:48]}  gxf5 {[%clk 0:02:27]} 15. Qd2 {[%clk 0:02:45]}  Ne5 {[%clk 0:02:23]} 16. b3 {[%clk 0:02:39]}  Ng6 {[%clk 0:02:15]} 17. Bh6 {[%clk 0:02:39]}  Rf7 {[%clk 0:02:00]} 18. Bh5 {[%clk 0:02:29]}  Qf8 {[%clk 0:01:53]} 19. Bxg7 {[%clk 0:02:19]}  Qxg7 {[%clk 0:01:54]} 20. Rfe1 {[%clk 0:02:19]}  Kh8 {[%clk 0:01:29]} 21. Bxg6 {[%clk 0:02:15]}  Qxg6 {[%clk 0:01:29]} 22. Ne2 {[%clk 0:02:16]}  Rg8 {[%clk 0:01:25]} 23. Nf4 {[%clk 0:02:16]}  Qg5 {[%clk 0:01:08]} 24. g3 {[%clk 0:02:14]}  Rfg7 {[%clk 0:00:54]} 25. Rcd1 {[%clk 0:02:06]}  b6 {[%clk 0:00:51]} 26. Ne6 {[%clk 0:02:04]}  Qxd2 {[%clk 0:00:50]} 27. Rxd2 {[%clk 0:02:05]}  Rf7 {[%clk 0:00:49]} 28. Nf4 {[%clk 0:02:01]}  b5 {[%clk 0:00:41]} 29. cxb5 {[%clk 0:01:58]}  axb5 {[%clk 0:00:42]} 30. Rde2 {[%clk 0:01:53]}  Re8 {[%clk 0:00:29]} 31. Re6 {[%clk 0:01:51]}  Nb7 {[%clk 0:00:27]} 32. Kg2 {[%clk 0:01:48]}  Rg7 {[%clk 0:00:28]} 33. Kf3 {[%clk 0:01:46]}  Kg8 {[%clk 0:00:28]} 34. h4 {[%clk 0:01:45]}  Kf8 {[%clk 0:00:27]} 35. Nh5 {[%clk 0:01:41]}  Rf7 {[%clk 0:00:26]} 36. Kf4 {[%clk 0:01:32]}  c4 {[%clk 0:00:21]} 37. bxc4 {[%clk 0:01:27]}  bxc4 {[%clk 0:00:22]} 38. Rc1 {[%clk 0:01:27]}  Nc5 {[%clk 0:00:22]} 39. Re3 {[%clk 0:01:18]}  Nd3+ {[%clk 0:00:14]} 40. Rxd3 {[%clk 0:01:18]}  cxd3 {[%clk 0:00:15]} 41. Rd1 {[%clk 0:01:18]}  e5+ {[%clk 0:00:13]} 42. dxe6 {[%clk 0:01:17]}  Rxe6 {[%clk 0:00:14]} 43. Rxd3 {[%clk 0:01:16]}  Ke7 {[%clk 0:00:12]} 44. Kf3 {[%clk 0:01:14]}  Re4 {[%clk 0:00:11]} 45. Nf4 {[%clk 0:01:13]}  Ra4 {[%clk 0:00:11]} 46. Nd5+ {[%clk 0:01:12]}  Ke6 {[%clk 0:00:11]} 47. Nf4+ {[%clk 0:01:08]}  Kd7 {[%clk 0:00:12]} 48. Rd2 {[%clk 0:01:08]}  Rf8 {[%clk 0:00:11]} 49. Nd3 {[%clk 0:01:08]}  Rc8 {[%clk 0:00:09]} 50. Ne5+ {[%clk 0:01:08]}  Ke6 {[%clk 0:00:09]} 51. Nd3 {[%clk 0:01:07]}  Rc3 {[%clk 0:00:08]} 52. Kg2 {[%clk 0:01:08]}  Rca3 {[%clk 0:00:09]} 53. Nf4+ {[%clk 0:01:07]}  Kd7 {[%clk 0:00:08]} 54. Rd5 {[%clk 0:01:06]}  Ra5 {[%clk 0:00:08]} 0-1


[Site "https://www.chess.com"]

[Event "Titled Tuesday Blitz May 30 Late 2023"]
[White "Harish, Neeraj"]
[Black "Balla, Tamas-Kristof"]
[WhiteFideId "30958130"]
[BlackFideId "1208497"]
[WhiteElo "1879"]
[BlackElo "2334"]
[Result "0-1"]
[Round "05"]
[TimeControl "180+2"]
[Date "2023.05.31"]
[WhiteClock "0:00:02"]
[BlackClock "0:00:33"]

1. e4 {[%clk 0:03:00]}  c5 {[%clk 0:02:56]} 2. Nf3 {[%clk 0:03:00]}  Nc6 {[%clk 0:02:56]} 3. d4 {[%clk 0:02:58]}  cxd4 {[%clk 0:02:56]} 4. Nxd4 {[%clk 0:02:59]}  e5 {[%clk 0:02:57]} 5. Nb5 {[%clk 0:02:59]}  d6 {[%clk 0:02:57]} 6. c4 {[%clk 0:02:50]}  Be7 {[%clk 0:02:57]} 7. N1c3 {[%clk 0:02:43]}  a6 {[%clk 0:02:55]} 8. Na3 {[%clk 0:02:43]}  f5 {[%clk 0:02:56]} 9. exf5 {[%clk 0:02:32]}  Bxf5 {[%clk 0:02:55]} 10. Bd3 {[%clk 0:02:32]}  Be6 {[%clk 0:02:55]} 11. O-O {[%clk 0:02:32]}  Nf6 {[%clk 0:02:54]} 12. Nc2 {[%clk 0:02:24]}  O-O {[%clk 0:02:53]} 13. Ne3 {[%clk 0:02:24]}  Qd7 {[%clk 0:02:53]} 14. Ned5 {[%clk 0:02:04]}  Rae8 {[%clk 0:02:51]} 15. Be3 {[%clk 0:01:59]}  Bd8 {[%clk 0:02:51]} 16. a3 {[%clk 0:01:54]}  Ng4 {[%clk 0:02:30]} 17. Bd2 {[%clk 0:01:46]}  Nd4 {[%clk 0:02:22]} 18. f3 {[%clk 0:01:41]}  Nf6 {[%clk 0:02:20]} 19. Be3 {[%clk 0:01:37]}  Nf5 {[%clk 0:02:11]} 20. Bf2 {[%clk 0:01:31]}  Qf7 {[%clk 0:02:04]} 21. Be4 {[%clk 0:01:18]}  Nxe4 {[%clk 0:01:39]} 22. fxe4 {[%clk 0:01:16]}  Ne7 {[%clk 0:01:30]} 23. Qd3 {[%clk 0:00:40]}  Qg6 {[%clk 0:01:17]} 24. b4 {[%clk 0:00:34]}  Nxd5 {[%clk 0:01:14]} 25. Nxd5 {[%clk 0:00:31]}  Bg4 {[%clk 0:01:09]} 26. Be3 {[%clk 0:00:11]}  Qh5 {[%clk 0:01:07]} 27. h3 {[%clk 0:00:03]}  Rxf1+ {[%clk 0:01:02]} 28. Rxf1 {[%clk 0:00:02]}  Be2 {[%clk 0:01:02]} 29. Qd2 {[%clk 0:00:02]}  Bxf1 {[%clk 0:01:02]} 30. Kxf1 {[%clk 0:00:03]}  Rf8+ {[%clk 0:01:00]} 31. Kg1 {[%clk 0:00:03]}  Bh4 {[%clk 0:00:53]} 32. Nc3 {[%clk 0:00:03]}  Bg3 {[%clk 0:00:53]} 33. Ne2 {[%clk 0:00:03]}  Qg6 {[%clk 0:00:51]} 34. Nxg3 {[%clk 0:00:01]}  Qxg3 {[%clk 0:00:51]} 35. Bb6 {[%clk 0:00:01]}  h6 {[%clk 0:00:44]} 36. c5 {[%clk 0:00:01]}  dxc5 {[%clk 0:00:38]} 37. Bxc5 {[%clk 0:00:02]}  Rf6 {[%clk 0:00:35]} 38. Qd5+ {[%clk 0:00:02]}  Kh7 {[%clk 0:00:34]} 39. Qd2 {[%clk 0:00:02]}  Qxa3 {[%clk 0:00:33]} 0-1


[Site "https://www.chess.com"]